[Event "*** Titled Tuesday Blitz"]
[Site "Chess.com"]
[Date "2020.03.03"]
[Round "5"]
[White "vova-79"]
[Black "CrushingKings"]
[Result "1-0"]
[WhiteElo "2548"]
[BlackElo "2202"]
[TimeControl "180+1"]
[EndTime "13:52:26 PST"]
[Termination "vova-79 won by resignation"]

1. d4 {[%clk 0:03:00.9]} 1... Nf6 {[%clk 0:02:59.2]} 2. c4 {[%clk 0:03:00.6]}
2... g6 {[%clk 0:02:53.6]} 3. Nc3 {[%clk 0:03:00]} 3... Bg7 {[%clk 0:02:54.2]}
4. Nf3 {[%clk 0:02:59.5]} 4... d6 {[%clk 0:02:54.6]} 5. g3 {[%clk 0:02:59.3]}
5... O-O {[%clk 0:02:54.9]} 6. Bg2 {[%clk 0:03:00.1]} 6... Nbd7 {[%clk
0:02:55.5]} 7. O-O {[%clk 0:02:59.5]} 7... c5 {[%clk 0:02:56]} 8. b3 {[%clk
0:02:55.4]} 8... Rb8 {[%clk 0:02:56.2]} 9. Bb2 {[%clk 0:02:54.8]} 9... a6 {[%clk
0:02:56.8]} 10. Rc1 {[%clk 0:02:52.9]} 10... b5 {[%clk 0:02:56.9]} 11. dxc5
{[%clk 0:02:47.8]} 11... Nxc5 {[%clk 0:02:53.7]} 12. cxb5 {[%clk 0:02:45.8]}
12... axb5 {[%clk 0:02:53.8]} 13. Nd4 {[%clk 0:02:43.8]} 13... Bd7 {[%clk
0:02:54.2]} 14. b4 {[%clk 0:02:41.7]} 14... Ne6 {[%clk 0:02:53.7]} 15. Nc6
{[%clk 0:02:41.1]} 15... Bxc6 {[%clk 0:02:52.6]} 16. Bxc6 {[%clk 0:02:42]} 16...
Ng4 {[%clk 0:02:31.7]} 17. Ba1 {[%clk 0:02:20.6]} 17... Nd4 {[%clk 0:02:05]} 18.
Bg2 {[%clk 0:02:13.4]} 18... Ne5 {[%clk 0:02:04.4]} 19. Kh1 {[%clk 0:02:06.1]}
19... Ne6 {[%clk 0:01:58]} 20. h3 {[%clk 0:01:56.6]} 20... Qd7 {[%clk
0:01:47.2]} 21. Qb3 {[%clk 0:01:50.5]} 21... Nc4 {[%clk 0:01:36.8]} 22. Rfd1
{[%clk 0:01:46.7]} 22... Nd4 {[%clk 0:01:35.4]} 23. Qb1 {[%clk 0:01:37.4]} 23...
Rfc8 {[%clk 0:01:32]} 24. e3 {[%clk 0:01:36.1]} 24... Na3 {[%clk 0:01:09.2]} 25.
Qd3 {[%clk 0:01:26.3]} 25... Nc6 {[%clk 0:01:09.4]} 26. Ne4 {[%clk 0:01:03.8]}
26... Bxa1 {[%clk 0:00:59.2]} 27. Qxa3 {[%clk 0:01:00.6]} 27... Bg7 {[%clk
0:00:59]} 28. Nc5 {[%clk 0:00:50.7]} 28... Qf5 {[%clk 0:00:32.1]} 29. Nd3 {[%clk
0:00:26.4]} 29... Nd8 {[%clk 0:00:12.9]} 30. Rxc8 {[%clk 0:00:21.9]} 30... Rxc8
{[%clk 0:00:13.8]} 31. Qa7 {[%clk 0:00:18.9]} 31... Bf6 {[%clk 0:00:12]} 32. a4
{[%clk 0:00:15.9]} 32... bxa4 {[%clk 0:00:09.2]} 33. Qxa4 {[%clk 0:00:16.8]}
33... Rc3 {[%clk 0:00:08.5]} 34. Nf4 {[%clk 0:00:14]} 34... Ne6 {[%clk 0:00:06]}
35. Nd5 {[%clk 0:00:12.7]} 35... Rc2 {[%clk 0:00:04.7]} 36. Nxf6+ {[%clk
0:00:08.7]} 36... Qxf6 {[%clk 0:00:04.7]} 37. Qxc2 {[%clk 0:00:06.8]} 1-0

[Event "*** Titled Tuesday Blitz"]
[Site "Chess.com"]
[Date "2020.03.03"]
[Round "5"]
[White "MikaelyanArman"]
[Black "ural58"]
[Result "1-0"]
[WhiteElo "2626"]
[BlackElo "2405"]
[TimeControl "180+1"]
[EndTime "13:52:30 PST"]
[Termination "MikaelyanArman won on time"]

1. e4 {[%clk 0:03:00.9]} 1... d5 {[%clk 0:02:55.5]} 2. exd5 {[%clk 0:03:00.8]}
2... Qxd5 {[%clk 0:02:52.9]} 3. Nc3 {[%clk 0:03:00.8]} 3... Qa5 {[%clk
0:02:52.2]} 4. d4 {[%clk 0:03:00.8]} 4... Nf6 {[%clk 0:02:49.4]} 5. Bd2 {[%clk
0:02:58.6]} 5... Bg4 {[%clk 0:02:36.3]} 6. f3 {[%clk 0:02:52.8]} 6... Bd7 {[%clk
0:02:33.9]} 7. Bc4 {[%clk 0:02:48]} 7... Qb6 {[%clk 0:02:30.9]} 8. Nge2 {[%clk
0:02:46.2]} 8... e6 {[%clk 0:02:18.9]} 9. O-O {[%clk 0:02:39]} 9... a5 {[%clk
0:02:06.1]} 10. Kh1 {[%clk 0:02:33.5]} 10... Bd6 {[%clk 0:01:55.6]} 11. Ne4
{[%clk 0:02:30]} 11... Nc6 {[%clk 0:01:40.7]} 12. Bg5 {[%clk 0:02:13.6]} 12...
Be7 {[%clk 0:01:37.2]} 13. Bxf6 {[%clk 0:02:11.3]} 13... gxf6 {[%clk 0:01:36.9]}
14. c3 {[%clk 0:02:04.5]} 14... f5 {[%clk 0:01:21]} 15. Nf2 {[%clk 0:01:59.4]}
15... O-O-O {[%clk 0:01:18.4]} 16. Nd3 {[%clk 0:01:54.8]} 16... Rhg8 {[%clk
0:01:14]} 17. a3 {[%clk 0:01:50.2]} 17... Kb8 {[%clk 0:01:12.3]} 18. b4 {[%clk
0:01:49.8]} 18... Na7 {[%clk 0:00:54.4]} 19. Nc5 {[%clk 0:01:47.6]} 19... Bb5
{[%clk 0:00:51.6]} 20. Bxb5 {[%clk 0:01:46]} 20... Qxb5 {[%clk 0:00:51.6]} 21.
Rb1 {[%clk 0:01:21.8]} 21... Bxc5 {[%clk 0:00:50.7]} 22. bxc5 {[%clk 0:01:20.7]}
22... Qc4 {[%clk 0:00:50.7]} 23. Qd2 {[%clk 0:01:14.5]} 23... Nc6 {[%clk
0:00:45.8]} 24. Qb2 {[%clk 0:01:12.8]} 24... Qa6 {[%clk 0:00:42.7]} 25. Nf4
{[%clk 0:01:12.2]} 25... e5 {[%clk 0:00:38.4]} 26. dxe5 {[%clk 0:00:55.6]} 26...
Nxe5 {[%clk 0:00:38.4]} 27. Rfe1 {[%clk 0:00:52.4]} 27... Nc4 {[%clk 0:00:35.3]}
28. Qe2 {[%clk 0:00:50.9]} 28... Ka7 {[%clk 0:00:33]} 29. a4 {[%clk 0:00:46.1]}
29... Rd2 {[%clk 0:00:30.4]} 30. Qe7 {[%clk 0:00:40]} 30... Rgd8 {[%clk
0:00:16.9]} 31. Qxc7 {[%clk 0:00:34.7]} 31... R8d7 {[%clk 0:00:13.6]} 32. Qc8
{[%clk 0:00:30.2]} 32... Qc6 {[%clk 0:00:12.5]} 33. Qf8 {[%clk 0:00:18.5]} 33...
Rb2 {[%clk 0:00:09.8]} 34. Rxb2 {[%clk 0:00:17]} 34... Nxb2 {[%clk 0:00:10.7]}
35. h3 {[%clk 0:00:16.3]} 35... Qxa4 {[%clk 0:00:08.1]} 36. Re8 {[%clk
0:00:14.5]} 36... Ka6 {[%clk 0:00:04.5]} 37. Ra8+ {[%clk 0:00:10.5]} 37... Kb5
{[%clk 0:00:04.7]} 38. Qe8 {[%clk 0:00:09.9]} 38... Qd1+ {[%clk 0:00:03.7]} 39.
Kh2 {[%clk 0:00:10.2]} 39... Kc4 {[%clk 0:00:02.5]} 40. Rxa5 {[%clk 0:00:07.3]}
40... Kb3 {[%clk 0:00:01.2]} 41. Qe5 {[%clk 0:00:05.5]} 1-0

[Event "*** Titled Tuesday Blitz"]
[Site "Chess.com"]
[Date "2020.03.03"]
[Round "5"]
[White "brutoman"]
[Black "MisiekZielony"]
[Result "0-1"]
[WhiteElo "1937"]
[BlackElo "2079"]
[TimeControl "180+1"]
[EndTime "13:52:30 PST"]
[Termination "MisiekZielony won on time"]

1. e4 {[%clk 0:03:00.9]} 1... Nf6 {[%clk 0:02:59.5]} 2. e5 {[%clk 0:03:00.3]}
2... Nd5 {[%clk 0:02:59.5]} 3. d4 {[%clk 0:03:00.8]} 3... d6 {[%clk 0:02:59.5]}
4. Bc4 {[%clk 0:03:00.9]} 4... e6 {[%clk 0:02:57.2]} 5. Qe2 {[%clk 0:02:54.5]}
5... Nb6 {[%clk 0:02:55.8]} 6. Bb3 {[%clk 0:02:53.5]} 6... Be7 {[%clk
0:02:52.2]} 7. c3 {[%clk 0:02:14]} 7... a5 {[%clk 0:02:32.4]} 8. Nf3 {[%clk
0:02:07.7]} 8... a4 {[%clk 0:02:19.2]} 9. Bc2 {[%clk 0:01:48.5]} 9... Bd7 {[%clk
0:02:18.5]} 10. O-O {[%clk 0:01:39]} 10... Bc6 {[%clk 0:02:18]} 11. Nbd2 {[%clk
0:01:37.1]} 11... N8d7 {[%clk 0:02:15.1]} 12. Ne4 {[%clk 0:01:35.1]} 12... h6
{[%clk 0:02:02.1]} 13. Ng3 {[%clk 0:01:32.4]} 13... g6 {[%clk 0:01:57.6]} 14.
Re1 {[%clk 0:01:32]} 14... Bd5 {[%clk 0:01:45.1]} 15. Ne4 {[%clk 0:01:05.5]}
15... Bxe4 {[%clk 0:01:34.6]} 16. Qxe4 {[%clk 0:00:50.4]} 16... d5 {[%clk
0:01:32.5]} 17. Qf4 {[%clk 0:00:50.1]} 17... c5 {[%clk 0:01:24.2]} 18. h4 {[%clk
0:00:42.8]} 18... Nc4 {[%clk 0:01:04.3]} 19. Rb1 {[%clk 0:00:32.3]} 19... a3
{[%clk 0:00:45.5]} 20. b3 {[%clk 0:00:30.3]} 20... Nb2 {[%clk 0:00:43.5]} 21.
Be3 {[%clk 0:00:25.1]} 21... b6 {[%clk 0:00:37.8]} 22. Rbc1 {[%clk 0:00:19.7]}
22... Rc8 {[%clk 0:00:30.1]} 23. Qg4 {[%clk 0:00:19.6]} 23... h5 {[%clk
0:00:29.4]} 24. Qh3 {[%clk 0:00:17.9]} 24... Kf8 {[%clk 0:00:25.2]} 25. Ng5
{[%clk 0:00:17.2]} 25... Kg7 {[%clk 0:00:22.1]} 26. Bd2 {[%clk 0:00:12.5]} 26...
Nf8 {[%clk 0:00:21.2]} 27. Re3 {[%clk 0:00:11.5]} 27... cxd4 {[%clk 0:00:20.5]}
28. cxd4 {[%clk 0:00:09.2]} 28... Bxg5 {[%clk 0:00:16.3]} 29. hxg5 {[%clk
0:00:08.2]} 29... Qxg5 {[%clk 0:00:16.2]} 30. Re2 {[%clk 0:00:07.4]} 30... Qg4
{[%clk 0:00:14.3]} 31. Qxg4 {[%clk 0:00:05.5]} 31... hxg4 {[%clk 0:00:14]} 32.
Bb4 {[%clk 0:00:04.7]} 32... Nd7 {[%clk 0:00:11.8]} 33. Rce1 {[%clk 0:00:01.2]}
33... Nb8 {[%clk 0:00:06.7]} 34. Bxa3 {[%clk 0:00:01.2]} 34... g3 {[%clk
0:00:01.3]} 0-1

[Event "*** Titled Tuesday Blitz"]
[Site "Chess.com"]
[Date "2020.03.03"]
[Round "5"]
[White "FelixJoseYnojosa"]
[Black "LucaBrasi1968"]
[Result "0-1"]
[WhiteElo "2669"]
[BlackElo "2493"]
[TimeControl "180+1"]
[EndTime "13:52:33 PST"]
[Termination "LucaBrasi1968 won by resignation"]

1. c4 {[%clk 0:03:00.9]} 1... e6 {[%clk 0:02:57.4]} 2. Nc3 {[%clk 0:03:00.6]}
2... f5 {[%clk 0:02:57.4]} 3. d4 {[%clk 0:03:00.3]} 3... Nf6 {[%clk 0:02:57.5]}
4. g3 {[%clk 0:03:00.6]} 4... d5 {[%clk 0:02:55.9]} 5. Bg2 {[%clk 0:02:59.9]}
5... c6 {[%clk 0:02:56.3]} 6. Nf3 {[%clk 0:02:59.7]} 6... Bd6 {[%clk 0:02:56.8]}
7. Ne5 {[%clk 0:02:59.9]} 7... O-O {[%clk 0:02:56.3]} 8. c5 {[%clk 0:03:00]}
8... Bxe5 {[%clk 0:02:50.6]} 9. dxe5 {[%clk 0:03:00.9]} 9... Nfd7 {[%clk
0:02:50.5]} 10. Qd4 {[%clk 0:03:00.6]} 10... Qe7 {[%clk 0:02:49.5]} 11. Be3
{[%clk 0:02:52.8]} 11... b6 {[%clk 0:02:45.8]} 12. cxb6 {[%clk 0:02:47.2]} 12...
axb6 {[%clk 0:02:45.8]} 13. O-O {[%clk 0:02:41.5]} 13... Bb7 {[%clk 0:02:37.2]}
14. Bf4 {[%clk 0:02:40.3]} 14... c5 {[%clk 0:02:35.7]} 15. Qd2 {[%clk
0:02:39.9]} 15... h6 {[%clk 0:02:32.8]} 16. h4 {[%clk 0:02:39.3]} 16... Nc6
{[%clk 0:02:31.1]} 17. Nb5 {[%clk 0:02:37.1]} 17... Ncxe5 {[%clk 0:02:25]} 18.
b3 {[%clk 0:02:19.6]} 18... Nf7 {[%clk 0:02:19.7]} 19. Qc2 {[%clk 0:02:12.4]}
19... e5 {[%clk 0:02:08.5]} 20. Bd2 {[%clk 0:02:12.3]} 20... e4 {[%clk
0:02:04.5]} 21. e3 {[%clk 0:02:04.8]} 21... Nde5 {[%clk 0:02:02.5]} 22. Bc3
{[%clk 0:02:02.2]} 22... Ba6 {[%clk 0:01:54.5]} 23. a4 {[%clk 0:02:01]} 23...
Bxb5 {[%clk 0:01:54.5]} 24. axb5 {[%clk 0:02:01.9]} 24... Nd3 {[%clk 0:01:53.5]}
25. Rad1 {[%clk 0:01:53.8]} 25... Rad8 {[%clk 0:01:45.7]} 26. Rxd3 {[%clk
0:01:52.3]} 26... exd3 {[%clk 0:01:45.4]} 27. Qxd3 {[%clk 0:01:53.2]} 27... d4
{[%clk 0:01:40.6]} 28. exd4 {[%clk 0:01:51.8]} 28... cxd4 {[%clk 0:01:40.9]} 29.
Re1 {[%clk 0:01:46.3]} 29... dxc3 {[%clk 0:01:36.6]} 30. Qxc3 {[%clk 0:01:35]}
30... Qd6 {[%clk 0:01:24.7]} 31. Rf1 {[%clk 0:01:23.3]} 31... f4 {[%clk
0:01:20]} 32. Be4 {[%clk 0:01:15.6]} 32... fxg3 {[%clk 0:01:18.7]} 33. fxg3
{[%clk 0:01:15.2]} 33... Qd4+ {[%clk 0:01:18.5]} 34. Qxd4 {[%clk 0:01:15.5]}
34... Rxd4 {[%clk 0:01:18.5]} 35. Bg2 {[%clk 0:01:12.1]} 35... Ne5 {[%clk
0:01:11]} 36. Ra1 {[%clk 0:01:12.3]} 36... Nf3+ {[%clk 0:01:06.2]} 37. Kh1
{[%clk 0:01:12.2]} 37... Rd2 {[%clk 0:00:55]} 38. Rf1 {[%clk 0:01:11.4]} 38...
Rd3 {[%clk 0:00:50.9]} 39. b4 {[%clk 0:01:09.1]} 39... g5 {[%clk 0:00:42.5]} 40.
hxg5 {[%clk 0:01:08.2]} 40... hxg5 {[%clk 0:00:42.9]} 41. g4 {[%clk 0:01:08.5]}
41... Kg7 {[%clk 0:00:39.7]} 42. Ra1 {[%clk 0:01:07.1]} 42... Rh8+ {[%clk
0:00:39]} 43. Bh3 {[%clk 0:01:03.7]} 43... Rxh3+ {[%clk 0:00:38.7]} 44. Kg2
{[%clk 0:01:04.3]} 44... Nh4+ {[%clk 0:00:35.6]} 45. Kf2 {[%clk 0:01:03.5]}
45... Rdf3+ {[%clk 0:00:33.2]} 46. Kg1 {[%clk 0:01:03.7]} 46... Rhg3+ {[%clk
0:00:29.2]} 47. Kh1 {[%clk 0:01:03.7]} 47... Rh3+ {[%clk 0:00:27.7]} 48. Kg1
{[%clk 0:01:04]} 48... Rb3 {[%clk 0:00:26.1]} 49. Ra7+ {[%clk 0:01:02.6]} 49...
Kf6 {[%clk 0:00:25.8]} 50. Ra8 {[%clk 0:00:49.5]} 50... Rxb4 {[%clk 0:00:25.8]}
51. Rf8+ {[%clk 0:00:48.1]} 51... Ke5 {[%clk 0:00:25.1]} 52. Rg8 {[%clk
0:00:47.7]} 52... Rxg4+ {[%clk 0:00:23.5]} 53. Kf2 {[%clk 0:00:47.1]} 53... Rf3+
{[%clk 0:00:23.6]} 54. Ke2 {[%clk 0:00:47]} 54... Rg2+ {[%clk 0:00:23.8]} 55.
Ke1 {[%clk 0:00:47.3]} 55... Ra3 {[%clk 0:00:23.8]} 56. Re8+ {[%clk 0:00:46.5]}
56... Kf6 {[%clk 0:00:23.7]} 57. Rf8+ {[%clk 0:00:46]} 57... Kg7 {[%clk
0:00:23.6]} 58. Ra8 {[%clk 0:00:45]} 58... Rxa8 {[%clk 0:00:21.6]} 0-1

[Event "*** Titled Tuesday Blitz"]
[Site "Chess.com"]
[Date "2020.03.03"]
[Round "5"]
[White "GadimbayliA"]
[Black "SantoBlue"]
[Result "0-1"]
[WhiteElo "2899"]
[BlackElo "2788"]
[TimeControl "180+1"]
[EndTime "13:52:34 PST"]
[Termination "SantoBlue won on time"]

1. e4 {[%clk 0:03:00.9]} 1... e5 {[%clk 0:02:59]} 2. Nf3 {[%clk 0:03:00.4]} 2...
d6 {[%clk 0:02:59.1]} 3. d4 {[%clk 0:02:57.9]} 3... Nd7 {[%clk 0:02:58.3]} 4.
Nc3 {[%clk 0:02:57.7]} 4... Ngf6 {[%clk 0:02:58.1]} 5. Bc4 {[%clk 0:02:57.2]}
5... Be7 {[%clk 0:02:58.1]} 6. O-O {[%clk 0:02:52.7]} 6... O-O {[%clk
0:02:57.2]} 7. a4 {[%clk 0:02:50.1]} 7... h6 {[%clk 0:02:56]} 8. dxe5 {[%clk
0:02:46.3]} 8... dxe5 {[%clk 0:02:51]} 9. Qe2 {[%clk 0:02:46]} 9... c6 {[%clk
0:02:50.7]} 10. Rd1 {[%clk 0:02:44.6]} 10... Qc7 {[%clk 0:02:49.6]} 11. h3
{[%clk 0:02:44.9]} 11... a5 {[%clk 0:02:49.3]} 12. Be3 {[%clk 0:02:44.6]} 12...
Nc5 {[%clk 0:02:44.3]} 13. Bxc5 {[%clk 0:02:36.5]} 13... Bxc5 {[%clk 0:02:43.8]}
14. Na2 {[%clk 0:02:37.4]} 14... Nh5 {[%clk 0:02:39.4]} 15. Nc1 {[%clk
0:02:36.4]} 15... Nf4 {[%clk 0:02:31.4]} 16. Qf1 {[%clk 0:02:35.4]} 16... b5
{[%clk 0:02:06.3]} 17. axb5 {[%clk 0:02:29.1]} 17... cxb5 {[%clk 0:02:06.3]} 18.
Bxb5 {[%clk 0:02:30]} 18... Rb8 {[%clk 0:02:05.8]} 19. Kh1 {[%clk 0:02:01.1]}
19... Qb6 {[%clk 0:02:04.5]} 20. Bc4 {[%clk 0:01:57.8]} 20... Bxf2 {[%clk
0:02:02]} 21. Nxe5 {[%clk 0:01:56.4]} 21... Nh5 {[%clk 0:01:59.9]} 22. Ne2
{[%clk 0:01:53.2]} 22... Rb7 {[%clk 0:01:01.6]} 23. Bd5 {[%clk 0:01:39.4]} 23...
Rc7 {[%clk 0:00:58.5]} 24. Nc4 {[%clk 0:01:12.6]} 24... Qf6 {[%clk 0:00:55.5]}
25. Rd3 {[%clk 0:01:07.5]} 25... Bh4 {[%clk 0:00:35.3]} 26. Rf3 {[%clk
0:01:01.2]} 26... Qe7 {[%clk 0:00:27.8]} 27. e5 {[%clk 0:00:54.9]} 27... Ba6
{[%clk 0:00:24.1]} 28. b3 {[%clk 0:00:23.4]} 28... Rc5 {[%clk 0:00:24]} 29. Rd1
{[%clk 0:00:20.5]} 29... Bxc4 {[%clk 0:00:19.5]} 30. bxc4 {[%clk 0:00:20.5]}
30... Qxe5 {[%clk 0:00:18.2]} 31. Rf5 {[%clk 0:00:20]} 31... Qxe2 {[%clk
0:00:16.6]} 32. Bxf7+ {[%clk 0:00:03]} 32... Rxf7 {[%clk 0:00:17]} 33. Qxe2
{[%clk 0:00:03.5]} 33... Ng3+ {[%clk 0:00:17.2]} 34. Kh2 {[%clk 0:00:04.1]}
34... Nxe2 {[%clk 0:00:17.4]} 35. Rxc5 {[%clk 0:00:04.8]} 35... Bg3+ {[%clk
0:00:17.2]} 36. Kh1 {[%clk 0:00:05.4]} 36... a4 {[%clk 0:00:17.1]} 37. Ra5
{[%clk 0:00:05.8]} 37... Nc3 {[%clk 0:00:16.5]} 38. Ra1 {[%clk 0:00:06.2]} 38...
Rc7 {[%clk 0:00:13.4]} 39. c5 {[%clk 0:00:04.7]} 39... Rc6 {[%clk 0:00:10.8]}
40. Ra3 {[%clk 0:00:05]} 40... Re6 {[%clk 0:00:11.1]} 41. Ra1 {[%clk 0:00:05.4]}
41... Re5 {[%clk 0:00:11.1]} 42. Ra8+ {[%clk 0:00:01.2]} 42... Kh7 {[%clk
0:00:11.7]} 43. Rd8 {[%clk 0:00:01.9]} 43... Rxc5 {[%clk 0:00:11.4]} 44. Rd3
{[%clk 0:00:02.8]} 44... Ne4 {[%clk 0:00:11.5]} 45. Rxa4 {[%clk 0:00:02.4]}
45... Nf2+ {[%clk 0:00:11.8]} 0-1

[Event "*** Titled Tuesday Blitz"]
[Site "Chess.com"]
[Date "2020.03.03"]
[Round "5"]
[White "AndreyNeves"]
[Black "aquaticpineapples"]
[Result "0-1"]
[WhiteElo "2189"]
[BlackElo "2255"]
[TimeControl "180+1"]
[EndTime "13:52:35 PST"]
[Termination "aquaticpineapples won by resignation"]

1. d4 {[%clk 0:03:00.9]} 1... d5 {[%clk 0:02:24.5]} 2. c4 {[%clk 0:02:59.7]}
2... e6 {[%clk 0:02:24]} 3. Nc3 {[%clk 0:02:58.8]} 3... Nf6 {[%clk 0:02:24.1]}
4. cxd5 {[%clk 0:02:59]} 4... exd5 {[%clk 0:02:25]} 5. Bg5 {[%clk 0:02:58.7]}
5... Be7 {[%clk 0:02:25.3]} 6. e3 {[%clk 0:02:58.4]} 6... O-O {[%clk 0:02:25.4]}
7. Bd3 {[%clk 0:02:57.5]} 7... a5 {[%clk 0:02:24.1]} 8. Qc2 {[%clk 0:02:53.3]}
8... h6 {[%clk 0:02:24]} 9. Bh4 {[%clk 0:02:52.1]} 9... Na6 {[%clk 0:02:23.3]}
10. a3 {[%clk 0:02:51]} 10... c5 {[%clk 0:02:18]} 11. Nf3 {[%clk 0:02:47.8]}
11... c4 {[%clk 0:02:13.6]} 12. Be2 {[%clk 0:02:45.8]} 12... Rb8 {[%clk
0:02:03.3]} 13. Ne5 {[%clk 0:02:45.1]} 13... Be6 {[%clk 0:01:57.4]} 14. O-O
{[%clk 0:02:33.6]} 14... Qc8 {[%clk 0:01:51.5]} 15. f4 {[%clk 0:02:24.7]} 15...
b5 {[%clk 0:01:43.5]} 16. Bxf6 {[%clk 0:02:20.4]} 16... Bxf6 {[%clk 0:01:42.3]}
17. e4 {[%clk 0:02:20.9]} 17... dxe4 {[%clk 0:01:38.1]} 18. Nxe4 {[%clk
0:02:20.1]} 18... Be7 {[%clk 0:01:37]} 19. g4 {[%clk 0:02:01.4]} 19... Bd5
{[%clk 0:01:18.7]} 20. Bf3 {[%clk 0:01:54.5]} 20... Qb7 {[%clk 0:01:17.1]} 21.
Rae1 {[%clk 0:01:50.6]} 21... Bh4 {[%clk 0:01:16]} 22. Re2 {[%clk 0:01:42]}
22... b4 {[%clk 0:01:08.4]} 23. f5 {[%clk 0:01:37.2]} 23... bxa3 {[%clk
0:01:03.7]} 24. bxa3 {[%clk 0:01:35.4]} 24... Rfd8 {[%clk 0:01:01.1]} 25. Rd1
{[%clk 0:01:29.1]} 25... Qb3 {[%clk 0:00:55.8]} 26. Qd2 {[%clk 0:01:08.7]} 26...
Qxa3 {[%clk 0:00:37.4]} 27. Qf4 {[%clk 0:00:53.7]} 27... Bxe4 {[%clk 0:00:32.3]}
28. Qxe4 {[%clk 0:00:39.1]} 28... c3 {[%clk 0:00:28]} 29. Nc6 {[%clk 0:00:33.2]}
29... Qb3 {[%clk 0:00:10.4]} 30. Rf1 {[%clk 0:00:25.3]} 30... Nb4 {[%clk
0:00:08.4]} 31. Nxd8 {[%clk 0:00:22.3]} 31... Rxd8 {[%clk 0:00:07.9]} 32. Qb1
{[%clk 0:00:14.1]} 32... Qc4 {[%clk 0:00:07.2]} 33. Re4 {[%clk 0:00:08.3]} 33...
Rxd4 {[%clk 0:00:06.7]} 34. Rxd4 {[%clk 0:00:07.8]} 34... Qxd4+ {[%clk
0:00:07.6]} 35. Kg2 {[%clk 0:00:07]} 35... c2 {[%clk 0:00:07.1]} 36. Qc1 {[%clk
0:00:06.5]} 36... Bg5 {[%clk 0:00:06.6]} 37. Qe1 {[%clk 0:00:04.9]} 37... c1=Q
{[%clk 0:00:05.6]} 38. Qxc1 {[%clk 0:00:04.5]} 38... Bxc1 {[%clk 0:00:06.4]} 39.
Rxc1 {[%clk 0:00:04.6]} 39... Qd2+ {[%clk 0:00:07]} 40. Kg3 {[%clk 0:00:04.1]}
40... Qxc1 {[%clk 0:00:07.9]} 41. f6 {[%clk 0:00:04.4]} 41... a4 {[%clk
0:00:07.8]} 0-1

[Event "*** Titled Tuesday Blitz"]
[Site "Chess.com"]
[Date "2020.03.03"]
[Round "5"]
[White "temus_galaktionov"]
[Black "ama18"]
[Result "1-0"]
[WhiteElo "2744"]
[BlackElo "2514"]
[TimeControl "180+1"]
[EndTime "13:52:40 PST"]
[Termination "temus_galaktionov won on time"]

1. d4 {[%clk 0:03:00]} 1... Nf6 {[%clk 0:02:58.7]} 2. Nf3 {[%clk 0:02:59.6]}
2... e6 {[%clk 0:02:58.8]} 3. c4 {[%clk 0:02:54]} 3... a6 {[%clk 0:02:56.8]} 4.
Nc3 {[%clk 0:02:53.8]} 4... d5 {[%clk 0:02:56.5]} 5. cxd5 {[%clk 0:02:53.6]}
5... exd5 {[%clk 0:02:57.4]} 6. Bg5 {[%clk 0:02:54]} 6... Be6 {[%clk 0:02:57.3]}
7. e3 {[%clk 0:02:54.2]} 7... Nbd7 {[%clk 0:02:55.8]} 8. Bd3 {[%clk 0:02:53.9]}
8... c6 {[%clk 0:02:55.3]} 9. O-O {[%clk 0:02:53.6]} 9... Bd6 {[%clk 0:02:55.1]}
10. h3 {[%clk 0:02:53.2]} 10... Qc7 {[%clk 0:02:52.7]} 11. Qd2 {[%clk
0:02:53.3]} 11... O-O {[%clk 0:02:49.3]} 12. Rfc1 {[%clk 0:02:48.6]} 12... Rac8
{[%clk 0:02:40.4]} 13. Bf4 {[%clk 0:02:45.4]} 13... Rfe8 {[%clk 0:02:37.8]} 14.
b4 {[%clk 0:02:43.2]} 14... Qb8 {[%clk 0:02:36.7]} 15. Na4 {[%clk 0:02:32.5]}
15... Ne4 {[%clk 0:02:26.8]} 16. Bxe4 {[%clk 0:02:28.8]} 16... dxe4 {[%clk
0:02:27.7]} 17. Bxd6 {[%clk 0:02:26.6]} 17... Qxd6 {[%clk 0:02:28.6]} 18. Nh2
{[%clk 0:02:24.3]} 18... Bd5 {[%clk 0:02:08.4]} 19. Nc5 {[%clk 0:02:23.6]} 19...
Rb8 {[%clk 0:01:58.3]} 20. a4 {[%clk 0:02:13.1]} 20... Nf6 {[%clk 0:01:50.4]}
21. Rab1 {[%clk 0:02:11.1]} 21... Rec8 {[%clk 0:01:36.8]} 22. Nf1 {[%clk
0:02:00.9]} 22... Nh5 {[%clk 0:01:30.3]} 23. b5 {[%clk 0:01:57.5]} 23... cxb5
{[%clk 0:01:24.8]} 24. axb5 {[%clk 0:01:58]} 24... axb5 {[%clk 0:01:24.3]} 25.
Rxb5 {[%clk 0:01:57.5]} 25... Nf6 {[%clk 0:00:46.4]} 26. Ng3 {[%clk 0:01:41.5]}
26... b6 {[%clk 0:00:40]} 27. Na6 {[%clk 0:01:39.4]} 27... Ra8 {[%clk
0:00:26.2]} 28. Nb4 {[%clk 0:01:08.7]} 28... Bc4 {[%clk 0:00:20.2]} 29. Nf5
{[%clk 0:01:08.4]} 29... Qd7 {[%clk 0:00:19.2]} 30. Re5 {[%clk 0:01:05.5]} 30...
Be6 {[%clk 0:00:09.8]} 31. Ng3 {[%clk 0:01:03]} 31... Rxc1+ {[%clk 0:00:08.2]}
32. Qxc1 {[%clk 0:01:03.9]} 32... Rc8 {[%clk 0:00:08.6]} 33. Qd2 {[%clk
0:01:00.5]} 33... Qa4 {[%clk 0:00:08.2]} 34. Nxe4 {[%clk 0:00:58.6]} 34... Nd7
{[%clk 0:00:06.3]} 35. Rg5 {[%clk 0:00:46.6]} 35... h6 {[%clk 0:00:06.3]} 36.
Rg3 {[%clk 0:00:45]} 36... Rc4 {[%clk 0:00:06.5]} 37. Nd3 {[%clk 0:00:42.1]}
37... Rc2 {[%clk 0:00:06.5]} 38. Qd1 {[%clk 0:00:40.3]} 38... Qc4 {[%clk
0:00:06.7]} 39. Kh2 {[%clk 0:00:35.6]} 39... Bd5 {[%clk 0:00:06.5]} 40. Nd6
{[%clk 0:00:34.4]} 40... Qc3 {[%clk 0:00:05.8]} 41. Qg4 {[%clk 0:00:30.4]} 41...
g6 {[%clk 0:00:05.1]} 42. Qxd7 {[%clk 0:00:27.3]} 42... Qxd3 {[%clk 0:00:04.3]}
43. Qe8+ {[%clk 0:00:27.4]} 43... Kg7 {[%clk 0:00:04.1]} 44. Qe5+ {[%clk
0:00:27]} 44... Kh7 {[%clk 0:00:03]} 45. Qxd5 {[%clk 0:00:25.6]} 45... Rxf2
{[%clk 0:00:01]} 46. Rf3 {[%clk 0:00:25.8]} 1-0